fUSD/lending_fUSD_20260323
["ID","MTS","AMOUNT","RATE_DAILY","PERIOD"]
[408803948,1774277565110,-425.6,0.00044107,120]
[408803949,1774277565119,-1990.0,0.00044109,120]
[408803950,1774277565129,-851.0,0.0004411,120]
[408803951,1774277565138,-977.93,0.0004411,120]
[408803952,1774277565148,-1532.54,0.00044148,2]
[408803953,1774277565157,-150.0,0.00044176,120]
[408803954,1774277565166,-998972.06696909,0.0004418,120]
[408803955,1774277565175,-151.5,0.00044199,2]
[408803956,1774277565185,-2958.8228,0.000442,2]
[408803957,1774277565195,-500.0,0.00044246,120]
[408803958,1774277565204,-180.0,0.0004426,2]
[408803959,1774277565214,-150.0,0.00044281,120]
[408803960,1774277565223,-500.0,0.00044299,120]
[408803961,1774277565233,-151.0,0.00044315,60]
[408803962,1774277565243,-2958.8228,0.00044351,2]
[408803963,1774277565252,-156.8153258,0.00044354,2]
[408803964,1774277565262,-500.0,0.00044355,120]
[408803965,1774277565271,-500.0,0.00044355,120]
[408803966,1774277565281,-343.4,0.00044375,120]
[408803967,1774277565290,-425.6,0.00044381,120]
[408803968,1774277565299,-500.0,0.00044382,120]
[408803969,1774277565308,-279.07,0.00044382,120]
[408803970,1774277565317,-500.0,0.00044383,120]
[408803971,1774277565327,-500.0,0.00044383,120]
[408803972,1774277565337,-500.0,0.00044383,120]
[408803973,1774277565346,-500.0,0.00044383,120]
[408803974,1774277565355,-500.0,0.00044383,120]
[408803975,1774277565366,-500.0,0.00044383,120]
[408803976,1774277565376,-537.16552109,0.00044383,120]
[408803977,1774277565386,-1990.0,0.00044383,120]
[408803978,1774277565395,-851.0,0.00044384,120]
[408803979,1774277565404,-750.0,0.00044384,10]
[408803980,1774277565414,-977.93,0.00044384,120]
[408803981,1774277565424,-169.09253885,0.000444,120]
[408803982,1774277565433,-475.55263481,0.000444,120]
[408803983,1774277565443,-300.40667556,0.000444,120]
[408803984,1774277565452,-163.03276748,0.000444,120]
[408803985,1774277565462,-207.81767363,0.000444,120]
[408803986,1774277565471,-205.93696604,0.000444,120]
[408803987,1774277565481,-186.96519499,0.000444,120]
[408803988,1774277565490,-6303.195812,0.000444,120]
[408803989,1774277565499,-123630.05041097,0.000444,30]
[408803990,1774277565509,-123630.05041097,0.000444,30]
[408803991,1774277565518,-123630.05041097,0.000444,30]
[408803992,1774277565528,-2352.0403016,0.0004444,120]
[408803993,1774277565538,-1107.11713726,0.0004444,120]
[408803994,1774277565550,-343.4,0.00044475,120]
[408803995,1774277565559,-4000.0,0.00044484,45]
[408803996,1774277565568,-151.5,0.00044488,2]
[408803997,1774277565578,-500.0,0.00044499,120]
[408803998,1774277565589,-500.0,0.00044499,120]
[408803999,1774277565599,-500.0,0.00044499,120]
[408804000,1774277565608,-500.0,0.00044499,120]
[408804001,1774277565619,-500.0,0.000445,45]
[408804002,1774277565629,-500.0,0.000445,45]
[408804003,1774277565638,-500.0,0.000445,45]
[408804004,1774277565647,-500.0,0.000445,45]
[408804005,1774277565656,-500.0,0.000445,45]
[408804006,1774277565666,-500.0,0.000445,45]
[408804007,1774277565675,-500.0,0.000445,45]
[408804008,1774277565684,-500.0,0.000445,45]
[408804009,1774277565694,-500.0,0.000445,45]
[408804010,1774277565704,-500.0,0.000445,45]
[408804011,1774277565713,-500.0,0.000445,45]
[408804012,1774277565722,-500.0,0.000445,45]
[408804013,1774277565732,-500.0,0.000445,45]
[408804014,1774277565742,-500.0,0.000445,45]
[408804015,1774277565752,-500.0,0.000445,45]
[408804016,1774277565762,-500.0,0.000445,45]
[408804017,1774277565771,-500.0,0.000445,45]
[408804018,1774277565780,-500.0,0.000445,45]
[408804019,1774277565794,-500.0,0.000445,45]
[408804020,1774277565803,-500.0,0.000445,45]
[408804021,1774277565812,-500.0,0.000445,45]
[408804022,1774277565822,-500.0,0.000445,45]
[408804023,1774277565831,-500.0,0.000445,45]
[408804024,1774277565841,-500.0,0.000445,45]
[408804025,1774277565851,-500.0,0.000445,45]
[408804026,1774277565861,-500.0,0.000445,45]
[408804027,1774277565870,-500.0,0.000445,45]
[408804028,1774277565880,-500.0,0.000445,45]
[408804029,1774277565890,-500.0,0.000445,45]
[408804030,1774277565900,-500.0,0.000445,45]
[408804031,1774277565909,-500.0,0.000445,45]
[408804032,1774277565919,-500.0,0.000445,45]
[408804033,1774277565929,-500.0,0.000445,45]
[408804034,1774277565938,-500.0,0.000445,45]
[408804035,1774277565947,-500.0,0.000445,45]
[408804036,1774277565956,-500.0,0.000445,45]
[408804037,1774277565966,-500.0,0.000445,45]
[408804038,1774277565975,-500.0,0.000445,45]
[408804039,1774277565985,-500.0,0.000445,45]
[408804040,1774277565995,-500.0,0.000445,45]
[408804041,1774277566004,-500.0,0.000445,120]
[408804042,1774277566014,-380.0,0.000445,120]
[408804043,1774277566023,-150.0,0.000445,120]
[408804044,1774277566033,-2958.8228,0.00044503,2]
[408804045,1774277566043,-315.56,0.00044516,120]
[408804046,1774277566052,-515.1359,0.00044521,120]
[408804047,1774277566062,-515.1359,0.00044521,120]
[408804048,1774277566071,-515.1359,0.00044521,120]
[408804049,1774277566080,-515.1359,0.00044521,120]
[408804050,1774277566090,-515.1359,0.00044521,120]
[408804051,1774277566099,-515.1359,0.00044521,120]
[408804052,1774277566109,-515.1359,0.00044521,120]
[408804053,1774277566118,-515.1359,0.00044521,120]
[408804054,1774277566127,-515.1359,0.00044521,120]
[408804055,1774277566136,-515.1359,0.00044521,120]
[408804056,1774277566145,-515.1359,0.00044521,120]
[408804057,1774277566155,-515.1359,0.00044521,120]
[408804058,1774277566164,-515.1359,0.00044521,120]
[408804059,1774277566173,-515.1359,0.00044521,120]
[408804060,1774277566183,-515.1359,0.00044521,120]
[408804061,1774277566192,-515.1359,0.00044521,120]
[408804062,1774277566202,-515.1359,0.00044521,120]
[408804063,1774277566211,-515.1359,0.00044521,120]
[408804064,1774277566220,-515.1359,0.00044521,120]
[408804065,1774277566229,-515.1359,0.00044521,120]
[408804066,1774277566238,-343.4,0.00044575,120]
[408804067,1774277566248,-369.3828711,0.00044594,2]
[408804068,1774277566257,-151.5,0.00044627,2]
[408804069,1774277566266,-156.8153258,0.00044628,2]
[408804070,1774277566275,-151.5,0.00044643,2]
[408804071,1774277566284,-9904.1928,0.00044646,30]
[408804072,1774277566293,-425.6,0.00044655,120]
[408804073,1774277566303,-500.0,0.00044657,120]
[408804074,1774277566312,-1990.0,0.00044657,120]
[408804075,1774277566321,-851.0,0.00044658,120]
[408804076,1774277566331,-977.93,0.00044658,120]
[408804077,1774277566340,-343.4,0.00044675,120]
[408804078,1774277566349,-210.40762625,0.00044692,120]
[408804079,1774277566359,-151.5,0.00044738,2]
[408804080,1774277566368,-150.0,0.00044763,120]
[408804081,1774277566377,-343.4,0.00044775,120]
[408804082,1774277566386,-206.07007668,0.00044775,120]
[408804083,1774277566395,-43018.0,0.00044778,120]
[408804084,1774277566405,-193.36,0.00044778,2]
[408804085,1774277566414,-160.6144883,0.00044781,7]
[408804086,1774277566423,-288.18,0.00044786,120]
[408804087,1774277566433,-160.0,0.00044786,120]
[408804088,1774277566443,-197.82,0.0004479,2]
[408804089,1774277566452,-150.0,0.00044794,120]
[408804090,1774277566462,-40000.0,0.000448,30]
[408804091,1774277566471,-40000.0,0.000448,45]
[408804092,1774277566480,-40000.0,0.000448,60]
[408804093,1774277566490,-40000.0,0.000448,90]
[408804094,1774277566499,-40000.0,0.000448,120]
[408804095,1774277566507,-40000.0,0.000448,100]
[408804096,1774277566517,-150.0,0.00044817,120]
[408804097,1774277566527,-254.78,0.0004483,60]
[408804098,1774277566537,-150.0,0.00044832,120]
[408804099,1774277566552,-502.0,0.00044857,29]
[408804100,1774277566561,-186.34146538,0.00044865,30]
[408804101,1774277566571,-343.4,0.00044875,120]
[408804102,1774277566580,-199.96,0.00044876,7]
[408804103,1774277566591,-455.89184325,0.0004489,120]
[408804104,1774277566600,-258.49766423,0.000449,120]
[408804105,1774277566610,-1277.86822536,0.000449,30]
[408804106,1774277566620,-292.88638198,0.000449,120]
[408804107,1774277566630,-153.0,0.000449,120]
[408804108,1774277566639,-61485.92855773,0.000449,30]
[408804109,1774277566648,-400.0,0.000449,120]
[408804110,1774277566658,-156.8153258,0.00044902,2]
[408804111,1774277566667,-425.6,0.00044929,120]
[408804112,1774277566676,-1990.0,0.00044931,120]
[408804113,1774277566686,-851.0,0.00044932,120]
[408804114,1774277566695,-407.58527887,0.00044932,10]
[408804115,1774277566704,-977.93,0.00044932,120]
[408804116,1774277566713,-150.0,0.00044951,120]
[408804117,1774277566723,-1532.54,0.00044957,2]
[408804118,1774277566732,-201.0,0.0004496,30]
[408804119,1774277566741,-343.4,0.00044975,120]
[408804120,1774277566750,-6342.91565555,0.0004498,2]
[408804121,1774277566760,-460.0,0.00044986,120]
[408804122,1774277566769,-1998.61627962,0.00044999,30]
[408804123,1774277566778,-1998.61627962,0.00044999,30]
[408804124,1774277566787,-500.0,0.00044999,120]
[408804125,1774277566797,-500.0,0.00044999,120]
[408804126,1774277566806,-500.0,0.00044999,120]
[408804127,1774277566815,-500.0,0.00044999,120]
[408804128,1774277566825,-500.0,0.00044999,120]
[408804129,1774277566835,-500.0,0.00044999,120]
[408804130,1774277566845,-500.0,0.00044999,120]
[408804131,1774277566855,-2443.46,0.00045,120]
[408804132,1774277566864,-2851.31441034,0.00045,120]
[408804133,1774277566874,-280.53789047,0.00045,30]
[408804134,1774277566884,-254.06913009,0.00045,120]
[408804135,1774277566894,-174.86944759,0.00045,30]
[408804136,1774277567356,-462.46747786,0.00045,30]
[408804137,1774277567367,-3541.90519407,0.00045,120]
[408804138,1774277567377,-655.60857472,0.00045,2]
[408804139,1774277567386,-666.35696272,0.00045,30]
[408804140,1774277567396,-623.38198,0.00045,120]
[408804141,1774277567405,-201.44652771,0.00045,30]
[408804142,1774277567415,-879.62,0.00045,120]
[408804143,1774277567425,-500.0,0.00045,45]
[408804144,1774277567434,-612.01563211,0.00045,10]
[408804145,1774277567445,-164.13007061,0.00045,10]
[408804146,1774277567455,-231.46600182,0.00045,120]
[408804147,1774277567465,-526.45820928,0.00045,30]
[408804148,1774277567474,-1636.35294997,0.00045,120]
[408804149,1774277567484,-196.99136359,0.00045,120]
[408804150,1774277567494,-161.9,0.00045,85]
[408804151,1774277567503,-258984.80463311,0.00045,5]
[408804152,1774277567512,-1272.10995118,0.00045,120]
[408804153,1774277567523,-846.64218996,0.00045,120]
[408804154,1774277567532,-636.12894603,0.00045,120]
[408804155,1774277567545,-557.03245974,0.00045,120]
[408804156,1774277567556,-380.63099627,0.00045,30]
[408804157,1774277567566,-506.70154081,0.00045,120]
[408804158,1774277567576,-157.63290808,0.00045,30]
[408804159,1774277567587,-153.32659345,0.00045,30]
[408804160,1774277567596,-1456.70025999,0.00045,120]
[408804161,1774277567606,-463.03072176,0.00045,120]
[408804162,1774277567616,-872.57737829,0.00045,30]
[408804163,1774277567627,-176.83755467,0.00045,120]
[408804164,1774277567637,-810.55543782,0.00045,120]
[408804165,1774277567647,-1146.95668452,0.00045,120]
[408804166,1774277567657,-160.0,0.00045,14]
[408804167,1774277567666,-173.04192008,0.00045,120]
[408804168,1774277567676,-600.0,0.00045,120]
[408804169,1774277567685,-600.0,0.00045,120]
[408804170,1774277567695,-500.0,0.00045,45]
[408804171,1774277567704,-500.0,0.00045,45]
[408804172,1774277567714,-500.0,0.00045,45]
[408804173,1774277567723,-500.0,0.00045,45]
[408804174,1774277567732,-500.0,0.00045,45]
[408804175,1774277567742,-500.0,0.00045,45]
[408804176,1774277567751,-500.0,0.00045,45]
[408804177,1774277567760,-500.0,0.00045,45]
[408804178,1774277567770,-514.63,0.00045,30]
[408804179,1774277567779,-200.0,0.00045,120]
[408804180,1774277567788,-5369.52225065,0.00045,30]
[408804181,1774277567798,-30000.0,0.00045,30]
[408804182,1774277567807,-381.0,0.00045,120]
[408804183,1774277567817,-1000.0,0.00045,120]
[408804184,1774277567826,-660.8371274,0.00045,120]
[408804185,1774277567836,-95000.0,0.00045,10]
[408804186,1774277567846,-267.0,0.00045,120]
[408804187,1774277567855,-3357.48897536,0.00045,120]
[408804188,1774277567865,-320.57405071,0.00045,120]
[408804189,1774277567875,-4029.0,0.00045,60]
[408804190,1774277567885,-10001.91780177,0.00045,2]
[408804191,1774277567894,-2308.17515465,0.00045,120]
[408804192,1774277567903,-535.83013489,0.00045,120]
[408804193,1774277567913,-772869.6790568,0.00045,2]
[408804194,1774277567922,-500.0,0.00045,120]
[408804195,1774277567931,-500.0,0.00045,120]
[408804196,1774277567940,-577.0,0.00045,120]
[408804197,1774277567949,-500.0,0.00045,120]
[408804198,1774277567958,-15006.68840011,0.00045,5]
[408804199,1774277567967,-200.0,0.00045,120]
[408804200,1774277567977,-6376.19,0.00045,120]
[408804201,1774277567986,-1171.3140118,0.00045,120]
[408804202,1774277567996,-308.3287,0.00045,14]
[408804203,1774277568005,-1000.0,0.00045,7]
[408804204,1774277568015,-1115.1719235,0.00045,120]
[408804205,1774277568024,-295.3,0.00045,120]
[408804206,1774277568034,-472668.49953152,0.00045,30]
[408804207,1774277568044,-943.72921291,0.00045,30]
[408804208,1774277568053,-24207.0,0.00045,60]
[408804209,1774277568062,-1048.81,0.00045,120]
[408804210,1774277568071,-30000.0,0.00045,120]
[408804211,1774277568081,-30000.0,0.00045,90]
[408804212,1774277568091,-1517.36030292,0.00045,120]
[408804213,1774277568100,-288.78473406,0.00045,120]
[408804214,1774277568109,-245.08,0.00045,120]
[408804215,1774277568119,-612.0839079,0.00045,30]
[408804216,1774277568128,-500.02,0.00045,120]
[408804217,1774277568137,-709.38,0.00045,120]
[408804218,1774277568148,-154.68,0.00045,120]
[408804219,1774277568157,-173.4827287,0.00045,120]
[408804220,1774277568167,-401.8154249,0.00045,120]
[408804221,1774277568177,-535.53525044,0.00045,30]
[408804222,1774277568187,-500.0,0.00045,30]
[408804223,1774277568197,-500.0,0.00045,30]
[408804224,1774277568207,-500.0,0.00045,30]
[408804225,1774277568216,-503.90785283,0.00045,2]
[408804226,1774277568227,-500.0,0.00045,120]
[408804227,1774277568236,-27180.0,0.00045,120]
[408804228,1774277568247,-229.32098,0.00045,120]
[408804229,1774277568267,-7576.5545291,0.00045,30]
[408804230,1774277568289,-83115.38525588,0.00045,10]
[408804231,1774277568311,-150.0,0.00045,20]
[408804232,1774277568327,-2194.0,0.00045,30]
[408804233,1774277568336,-305.18,0.00045,120]
[408804234,1774277568346,-358.9490358,0.00045,120]
[408804235,1774277568356,-731.0,0.00045,30]
[408804236,1774277568366,-17894.0,0.00045,60]
[408804237,1774277568376,-380.0,0.00045,120]
[408804238,1774277568385,-150.0,0.00045,120]
[408804239,1774277568396,-331.54,0.00045,120]
[408804240,1774277568406,-1392.38,0.00045,120]
[408804241,1774277568415,-788.4,0.00045,120]
[408804242,1774277568424,-1229.49,0.00045,120]
[408804243,1774277568434,-659.18,0.00045,120]
[408804244,1774277568443,-717.67,0.00045,120]
[408804245,1774277568453,-425.91,0.00045,120]
[408804246,1774277568463,-427.58,0.00045,120]
[408804247,1774277568473,-331.21,0.00045,120]
[408804248,1774277568482,-725.72,0.00045,120]
[408804249,1774277568491,-413.05,0.00045,120]
[408804250,1774277568501,-1141.38,0.00045,120]
[408804251,1774277568510,-1967.64,0.00045,120]
[408804252,1774277568520,-745.21,0.00045,120]
[408804253,1774277568529,-947.62,0.00045,120]
[408804254,1774277568543,-5000.0,0.00045,120]
[408804255,1774277568553,-5000.0,0.00045,120]
[408804256,1774277568562,-5000.0,0.00045,120]
[408804257,1774277568572,-5000.0,0.00045,120]
[408804258,1774277568584,-5000.0,0.00045,120]
[408804259,1774277568594,-5000.0,0.00045,120]
[408804260,1774277568607,-5000.0,0.00045,120]
[408804261,1774277568618,-5000.0,0.00045,120]
[408804262,1774277568628,-5000.0,0.00045,120]
[408804263,1774277568637,-5105.0,0.00045,120]
[408804264,1774277568648,-5000.0,0.00045,120]
[408804265,1774277568658,-5000.0,0.00045,120]
[408804266,1774277568668,-5000.0,0.00045,120]
[408804267,1774277568678,-5000.0,0.00045,120]
[408804268,1774277568687,-5000.0,0.00045,120]
[408804269,1774277568697,-5000.0,0.00045,120]
[408804270,1774277568706,-5000.0,0.00045,120]
[408804271,1774277568716,-5000.0,0.00045,120]
[408804272,1774277568725,-5000.0,0.00045,120]
[408804273,1774277568735,-5000.0,0.00045,120]
[408804274,1774277568744,-150.0,0.00045037,120]
[408804275,1774277568754,-500.0,0.00045068,120]
[408804276,1774277568764,-150.0,0.0004507,120]
[408804277,1774277568773,-343.4,0.00045075,120]
[408804278,1774277568783,-150.0,0.00045095,120]
[408804279,1774277568792,-151.5,0.00045097,2]
[408804280,1774277568802,-500.0,0.000451,30]
[408804281,1774277568811,-162.47299802,0.000451,120]
[408804282,1774277568822,-151.0,0.000451,120]
[408804283,1774277568831,-2000.0,0.000451,2]
[408804284,1774277568841,-5290.22634,0.0004512,30]
[408804285,1774277568851,-151.5,0.00045162,2]
[408804286,1774277568861,-343.4,0.00045175,120]
[408804287,1774277568871,-156.8153258,0.00045176,2]
[408804288,1774277568880,-892.34230511,0.000452,30]
[408804289,1774277568890,-6068.35085239,0.000452,30]
[408804290,1774277568899,-180.0,0.00045202,2]
[408804291,1774277568909,-152.0,0.00045202,2]
[408804292,1774277568919,-425.6,0.00045203,120]
[408804293,1774277568928,-1990.0,0.00045205,120]
[408804294,1774277568938,-851.0,0.00045205,120]
[408804295,1774277568949,-415.03058624,0.00045205,10]
[408804296,1774277568958,-2292.78440987,0.00045206,30]
[408804297,1774277568968,-977.93,0.00045206,120]
[408804298,1774277568977,-343.4,0.00045275,120]
[408804299,1774277568987,-150.0,0.00045291,120]
[408804300,1774277568996,-400.0,0.000453,120]
[408804301,1774277569006,-151.0,0.00045315,60]
[408804302,1774277569015,-150.0,0.00045326,120]
[408804303,1774277569025,-210.40762625,0.00045336,120]
[408804304,1774277569034,-150.0,0.00045355,120]
[408804305,1774277569044,-343.4,0.00045375,120]
[408804306,1774277569053,-644.27,0.00045375,30]
[408804307,1774277569063,-1379.43,0.00045397,30]
[408804308,1774277569072,-245.32312389,0.000454,30]
[408804309,1774277569082,-1755.62188532,0.00045421,120]
[408804310,1774277569091,-156.8153258,0.0004545,2]
[408804311,1774277569100,-150.0,0.0004547,120]
[408804312,1774277569109,-343.4,0.00045475,120]
[408804313,1774277569118,-425.6,0.00045477,120]
[408804314,1774277569128,-500.0,0.00045479,120]
[408804315,1774277569137,-1990.0,0.00045479,120]
[408804316,1774277569146,-851.0,0.00045479,120]
[408804317,1774277569156,-977.93,0.0004548,120]
[408804318,1774277569165,-150.0,0.00045481,120]
[408804319,1774277569174,-500.0,0.00045499,120]
[408804320,1774277569183,-600.87743374,0.00045499,120]
[408804321,1774277569192,-238.15054637,0.000455,120]
[408804322,1774277569201,-380.0,0.000455,120]
[408804323,1774277569211,-150.0,0.000455,120]
[408804324,1774277569220,-343.4,0.00045575,120]
[408804325,1774277569229,-150.0,0.00045593,120]
[408804326,1774277569238,-369.3828711,0.00045594,7]
[408804327,1774277569247,-24709.69198812,0.000456,120]
[408804328,1774277569256,-600.0,0.00045616,120]
[408804329,1774277569266,-150.0,0.0004564,120]
[408804330,1774277569275,-150.0,0.00045656,120]
[408804331,1774277569284,-343.4,0.00045675,120]
[408804332,1774277569293,-1287.83908633,0.00045678,120]
[408804333,1774277569302,-310.09924817,0.000457,120]
[408804334,1774277569311,-169.09253885,0.000457,120]
[408804335,1774277569321,-475.55263481,0.000457,120]
[408804336,1774277569330,-300.40667556,0.000457,120]
[408804337,1774277569339,-163.03276748,0.000457,120]
[408804338,1774277569349,-207.81767363,0.000457,120]
[408804339,1774277569358,-205.93696604,0.000457,120]
[408804340,1774277569368,-186.96519499,0.000457,120]
[408804341,1774277569378,-151.5,0.00045713,2]
[408804342,1774277569387,-502.0,0.00045714,29]
[408804343,1774277569396,-150.0,0.00045715,120]
[408804344,1774277569405,-156.8153258,0.00045724,2]
[408804345,1774277569415,-150.0,0.00045734,120]
[408804346,1774277569424,-425.6,0.00045751,120]
[408804347,1774277569434,-1990.0,0.00045753,120]
[408804348,1774277569443,-851.0,0.00045753,120]
[408804349,1774277569452,-977.93,0.00045754,120]
[408804350,1774277569462,-1532.54,0.00045766,2]
[408804351,1774277569471,-343.4,0.00045775,120]
[408804352,1774277569480,-153.0,0.000458,120]
[408804353,1774277569490,-2393.6,0.000458,30]
[408804354,1774277569499,-151.5,0.00045801,2]
[408804355,1774277569508,-150.0,0.00045823,120]
[408804356,1774277569518,-343.4,0.00045875,120]
[408804357,1774277569527,-409.28770878,0.0004588,30]
[408804358,1774277569536,-500.0,0.0004589,120]
[408804359,1774277569549,-860.64,0.0004589,30]
[408804360,1774277569558,-2281.8366,0.00045966,30]
[408804361,1774277569567,-343.4,0.00045975,120]
[408804362,1774277569576,-210.40762625,0.00045981,120]
[408804363,1774277569587,-156.8153258,0.00045998,2]
[408804364,1774277569596,-1391.0174243,0.00045999,120]
[408804365,1774277569605,-50000.0,0.00046,47]
[408804366,1774277569615,-50000.0,0.00046,48]
[408804367,1774277569625,-307.48060666,0.00046,2]
[408804368,1774277569635,-260.4421136,0.00046,120]
[408804369,1774277569643,-8000.0,0.00046,30]
[408804370,1774277569652,-10000.0,0.00046,120]
[408804371,1774277569662,-164.27389953,0.00046,30]
[408804372,1774277569671,-10000.7609482,0.00046,120]
[408804373,1774277569680,-920.50381351,0.00046,120]
[408804374,1774277569689,-504.00827942,0.00046,120]
[408804375,1774277569698,-1393.74247802,0.00046,120]
[408804376,1774277569708,-1270.16285352,0.00046,90]
[408804377,1774277569716,-6440.0,0.00046,60]
[408804378,1774277569876,-500.0,0.00046,120]
[408804379,1774277569886,-653.63,0.00046,120]
[408804380,1774277569895,-644.14,0.00046,120]
[408804381,1774277569904,-1836.99721787,0.00046,30]
[408804382,1774277569913,-207.3422909,0.00046,30]
[408804383,1774277569922,-500.0,0.00046,30]
[408804384,1774277569931,-500.0,0.00046,30]
[408804385,1774277569941,-395.0,0.00046,120]
[408804386,1774277569950,-1000.0,0.00046,7]
[408804387,1774277569959,-2072.66431744,0.00046,30]
[408804388,1774277569968,-2000.0,0.00046,90]
[408804389,1774277569977,-1666.55188529,0.00046,60]
[408804390,1774277569986,-1000000.0,0.00046,120]
[408804391,1774277569995,-451.06398115,0.00046,120]
[408804392,1774277570005,-286.8446989,0.00046,30]
[408804393,1774277570014,-500506.14,0.00046,120]
[408804394,1774277570023,-8990.0,0.00046,120]
[408804395,1774277570032,-1628.41671631,0.00046,120]
[408804396,1774277570041,-889.20356949,0.00046,120]
[408804397,1774277570050,-2194.0,0.00046,30]
[408804398,1774277570059,-731.0,0.00046,30]
[408804399,1774277570068,-150045.0,0.00046,120]
[408804400,1774277570079,-255.15818685,0.00046,2]
[408804401,1774277570088,-380.0,0.00046,120]
[408804402,1774277570098,-150.0,0.00046,120]
[408804403,1774277570107,-1604.26264292,0.00046,30]
[408804404,1774277570116,-425.6,0.00046025,120]
[408804405,1774277570128,-1990.0,0.00046027,120]
[408804406,1774277570138,-851.0,0.00046027,120]
[408804407,1774277570147,-161.75994059,0.00046027,2]
[408804408,1774277570157,-3000.0,0.00046027,120]
[408804409,1774277570166,-977.93,0.00046028,120]
[408804410,1774277570175,-150.0,0.00046037,120]
[408804411,1774277570184,-150.0,0.00046049,120]
[408804412,1774277570193,-151.5,0.00046064,2]
[408804413,1774277570202,-343.4,0.00046075,120]
[408804414,1774277570211,-150.0,0.00046083,120]
[408804415,1774277570220,-192.548142,0.00046086,7]
[408804416,1774277570229,-1491.233102,0.00046086,7]
[408804417,1774277570238,-426.0,0.00046096,120]
[408804418,1774277570246,-1041.67,0.00046099,2]
[408804419,1774277570256,-500.0,0.00046099,120]
[408804420,1774277570265,-870.0,0.000461,45]
[408804421,1774277570275,-150.0,0.000461,120]
[408804422,1774277570283,-2123.21,0.00046108,120]
[408804423,1774277570293,-150.0,0.00046131,5]
[408804424,1774277570302,-150.0,0.00046131,7]
[408804425,1774277570310,-150.0,0.00046131,10]
[408804426,1774277570319,-150.0,0.00046131,12]
[408804427,1774277570328,-150.0,0.00046131,15]
[408804428,1774277570337,-150.0,0.00046131,10]
[408804429,1774277570347,-150.0,0.00046131,7]
[408804430,1774277570356,-193.30992277,0.00046131,5]
[408804431,1774277570364,-913.69393705,0.00046137,120]
[408804432,1774277570373,-180.0,0.00046143,2]
[408804433,1774277570382,-152.0,0.00046143,2]
[408804434,1774277570392,-152.0,0.00046143,2]
[408804435,1774277570401,-200.74772176,0.00046152,5]
[408804436,1774277570410,-150.0,0.00046156,120]
[408804437,1774277570419,-344.41347229,0.00046172,30]
[408804438,1774277570428,-343.4,0.00046175,120]
[408804439,1774277570436,-393.3719891,0.000462,30]
[408804440,1774277570445,-180.0,0.000462,120]
[408804441,1774277570454,-151.0,0.000462,120]
[408804442,1774277570463,-1041.67,0.00046223,2]
[408804443,1774277570472,-500.0,0.00046223,120]
[408804444,1774277570481,-156.8153258,0.00046272,2]
[408804445,1774277570489,-343.4,0.00046275,120]
[408804446,1774277570498,-425.6,0.00046299,120]
[408804447,1774277570507,-500.0,0.00046301,120]